bitfinex/quotes_SOLUSD_20250814
["timestamp","ask_amount","ask_price","bid_price","bid_amount"]
[1755162384392,9.824727,203.95,203.87,0.68]
[1755162384895,0.7,203.96,203.87,0.68]
[1755162385085,9.824727,203.95,203.87,0.68]
[1755162385593,0.7,203.96,203.88,4.90484598]
[1755162386094,9.824727,203.95,203.88,4.90484598]
[1755162386295,10.524727,203.96,203.89,15.10621557]
[1755162386989,9.824727,203.98,203.9,0.68]
[1755162387193,36.58,203.99,203.92,26.0]
[1755162387380,46.404727,203.99,203.92,26.0]
[1755162387791,35.88,203.99,203.93,20.68985897]
[1755162387989,35.88,203.99,203.96,26.0]
[1755162388799,36.58,203.99,203.96,26.0]
[1755162389000,45.704727,203.99,203.96,26.0]
[1755162389306,75.50788768,204.0,203.97,36.54]
[1755162389477,74.78788768,204.0,203.99,15.10621557]
[1755162389672,49.38579077,204.0,203.99,46.68841665]
[1755162389877,49.38579077,204.0,203.8,49.09957518]
[1755162389878,49.38579077,204.0,203.88,10.0]
[1755162390074,49.38579077,204.0,203.99,26.0]
[1755162390806,49.38579077,204.0,203.98,26.0]
[1755162390978,49.38579077,204.0,203.99,15.10621557]
[1755162391897,50.10579077,204.0,203.98,26.0]
[1755162392101,49.38579077,204.0,203.98,26.0]
[1755162393382,10.544727,203.99,203.95,26.0]
[1755162394074,0.72,203.99,203.95,26.0]
[1755162394293,49.38579077,204.0,203.99,26.0]
[1755162394487,49.38579077,204.0,203.99,41.10621557]
[1755162394892,49.38579077,204.0,203.99,41.79621557]
[1755162395406,49.38579077,204.0,203.99,41.10621557]
[1755162395909,49.38579077,204.0,203.99,41.79621557]
[1755162396202,49.38579077,204.0,203.99,82.67841665]
[1755162396711,49.38579077,204.0,203.99,82.73841665]
[1755162397083,49.38579077,204.0,203.99,41.10621557]
[1755162397307,59.93051777,204.0,203.92,0.69]
[1755162397513,9.824727,203.98,203.93,15.10621557]
[1755162397810,0.72,203.98,203.93,29.80165257]
[1755162397999,0.72,203.98,203.96,26.0]
[1755162398515,49.38579077,204.0,203.96,26.0]
[1755162398516,59.21051777,204.0,203.96,26.0]
[1755162398691,49.38579077,204.0,203.99,41.10621557]
[1755162398884,49.38579077,204.0,203.99,41.79621557]
[1755162399210,0.72,204.29,204.18,2.298]
[1755162399506,9.824727,204.24,204.18,2.298]
[1755162399697,9.824727,204.22,204.18,2.298]
[1755162399898,10.544727,204.21,204.18,12.298]
[1755162400201,37.86,204.25,204.18,38.298]
[1755162400379,0.72,204.25,204.18,38.298]
[1755162400576,42.73605068,204.25,204.18,12.298]
[1755162400777,9.824727,204.22,204.18,12.298]
[1755162401104,0.72,204.21,204.18,2.298]
[1755162401300,47.744727,204.21,204.19,14.680335]
[1755162401503,37.94,204.2,204.19,14.680335]
[1755162401683,37.94,204.2,204.18,2.298]
[1755162401888,4.89598746,204.25,204.18,2.298]
[1755162401889,47.744727,204.19,204.18,2.298]
[1755162402420,67.74834205,204.19,204.18,0.858]
[1755162403720,9.824727,204.09,204.0,5.59196078]
[1755162403919,47.044727,204.08,204.06,14.681773]
[1755162404119,10.544727,204.07,203.92,12.2593785]
[1755162404301,0.72,204.07,203.98,15.10621557]
[1755162404508,9.824727,204.05,204.02,14.691119]
[1755162404712,37.24,204.04,204.02,14.691119]
[1755162405430,37.24,204.03,204.02,14.691119]
[1755162406126,24.2687265,204.03,204.02,14.691119]
[1755162406497,9.824727,204.04,204.02,14.691119]
[1755162406703,37.22,204.04,204.02,14.691119]
[1755162407919,14.82839787,204.06,204.02,14.691119]
[1755162408125,37.18,204.05,204.02,14.691119]
[1755162408801,37.16,204.05,204.02,14.691119]
[1755162409123,14.82839787,204.11,204.03,0.69]
[1755162409318,0.72,204.13,204.03,0.69]
[1755162409319,37.16,204.1,204.03,0.69]
[1755162409625,0.72,204.13,204.05,26.0]
[1755162409795,37.16,204.11,204.05,26.69]
[1755162409998,0.72,204.22,204.06,79.44626751]
[1755162410199,14.82839787,204.18,204.07,0.69]
[1755162410425,14.82839787,204.16,204.1,26.0]
[1755162410897,37.34,204.19,204.11,26.69]
[1755162411093,37.34,204.2,204.12,0.69]
[1755162411307,52.16839787,204.2,204.12,0.69]
[1755162411505,52.88839787,204.2,204.12,0.69]
[1755162411926,14.82839787,204.17,204.11,26.0]
[1755162412427,37.34,204.2,204.12,0.69]
[1755162412612,14.82839787,204.21,204.12,0.69]
[1755162412816,52.14839787,204.2,204.12,0.69]
[1755162413128,37.32,204.2,204.12,0.69]
[1755162413306,0.06,204.22,204.16,26.0]
[1755162413510,0.06,204.22,204.17,1.17978792]
[1755162413821,0.06,204.22,204.18,0.69]
[1755162414120,0.06,204.22,204.16,26.0]
[1755162414325,0.06,204.22,204.18,26.0]
[1755162415030,0.72,204.21,204.19,1.957187]
[1755162415233,0.06,204.22,204.19,1.957187]
[1755162415607,0.06,204.22,204.19,27.957187]
[1755162416229,0.06,204.22,204.19,1.957187]
[1755162416906,0.78,204.22,204.19,1.957187]
[1755162417106,0.06,204.22,204.19,1.957187]
[1755162417411,0.06,204.22,204.2,0.69]
[1755162417836,0.06,204.22,204.21,0.69]
[1755162418350,0.06,204.22,204.19,32.85446439]
[1755162418516,15.60839787,204.22,204.19,1.957187]
[1755162418718,14.82839787,204.2,204.11,16.95871724]
[1755162418918,14.82839787,204.18,204.12,4.89907897]
[1755162419137,14.82839787,204.18,204.16,1.957474]
[1755162419318,0.06,204.22,204.07,12.25013717]
[1755162419319,15.54839787,204.17,204.09,4.8997991]
[1755162419520,0.06,204.22,204.14,12.250137]
[1755162419825,0.06,204.22,204.17,26.0]
[1755162420132,0.06,204.22,204.18,0.69]
[1755162420449,0.06,204.22,204.2,4.89715964]
[1755162420750,0.06,204.22,204.21,0.72]
[1755162421335,0.06,204.22,204.2,31.3868756]
[1755162421573,0.06,204.22,204.21,0.72]
[1755162422638,0.06,204.22,204.21,31.61691983]
[1755162423150,0.06,204.22,204.21,26.72]
[1755162423455,0.06,204.22,204.21,26.0]
[1755162423746,0.06,204.22,204.14,61.83653539]
[1755162423747,0.06,204.22,204.14,50.310137]
[1755162423940,0.73,204.22,204.14,38.06]
[1755162424254,15.55839787,204.22,204.14,0.72]
[1755162424551,14.82839787,204.18,204.11,0.72]
[1755162424725,14.82839787,204.17,204.09,4.04306551]
[1755162425053,0.67,204.21,204.11,26.0]
[1755162425228,14.82839787,204.19,204.11,26.0]
[1755162425425,0.67,204.19,204.11,26.0]
[1755162425630,15.49839787,204.19,204.11,26.0]
[1755162426655,14.82839787,204.18,204.12,26.0]
[1755162426841,0.67,204.19,204.13,26.0]
[1755162427035,0.06,204.22,204.18,26.0]
[1755162427246,0.06,204.22,204.19,0.72]
[1755162427429,0.06,204.22,204.2,0.72]
[1755162427627,0.06,204.22,204.2,1.20971596]
[1755162427850,0.06,204.22,204.14,26.72]
[1755162428037,0.73,204.22,204.16,26.0]
[1755162428554,14.82839787,204.17,204.1,5.61953647]
[1755162428736,14.82839787,204.19,204.1,5.61953647]
[1755162428927,0.67,204.2,204.1,5.61953647]
[1755162428928,0.67,204.2,204.13,26.0]
[1755162429132,14.82839787,204.19,204.13,26.0]
[1755162429355,0.67,204.2,204.1,5.61953647]
[1755162429561,14.82839787,204.19,204.13,26.0]
[1755162429930,14.82839787,204.19,204.1,5.61953647]
[1755162430131,0.67,204.2,204.13,26.0]
[1755162430349,14.82839787,204.18,204.13,26.0]
[1755162430653,14.82839787,204.19,204.13,26.0]
[1755162430859,0.06,204.22,204.17,26.0]
[1755162431163,0.06,204.22,204.17,26.72]
[1755162431330,0.06,204.22,204.17,26.0]
[1755162431331,0.73,204.22,204.17,26.0]
[1755162431743,0.06,204.22,204.17,26.0]
[1755162432056,0.06,204.22,204.17,26.72]
[1755162432267,0.06,204.22,204.18,4.89763933]
[1755162432441,0.06,204.22,204.19,26.0]
[1755162432641,14.82839787,204.2,204.15,26.0]
[1755162433038,14.82839787,204.21,204.14,26.0]
[1755162433262,0.06,204.22,204.15,0.72]
[1755162433557,0.06,204.22,204.16,26.0]
[1755162433731,0.06,204.22,204.17,0.72]
[1755162434059,0.67,204.21,204.16,26.0]
[1755162434255,0.67,204.2,204.16,26.0]
[1755162434562,0.06,204.22,204.21,26.0]
[1755162434854,0.06,204.22,204.21,26.72]
[1755162435051,0.06,204.22,204.21,27.20969198]
[1755162435638,0.06,204.22,204.21,26.72]
[1755162436037,0.06,204.22,204.21,27.20969198]
[1755162436243,0.06,204.22,204.21,42.31590755]
[1755162436449,0.06,204.24,204.22,15.10621557]
[1755162436669,0.06,204.25,204.24,15.10621557]
[1755162439241,0.67,204.3,204.24,26.0]
[1755162439438,15.49839787,204.3,204.24,26.0]
[1755162439652,14.82839787,204.28,204.24,26.0]
[1755162439851,14.82839787,204.29,204.24,26.0]
[1755162440133,15.49839787,204.29,204.24,26.0]
[1755162440337,14.82839787,204.27,204.21,38.22]
[1755162440534,14.82839787,204.27,204.21,37.5]
[1755162440763,14.82839787,204.25,204.18,0.72]
[1755162441068,14.82839787,204.19,204.14,0.72]
[1755162441365,15.49839787,204.18,204.11,10.51718699]
[1755162441578,14.82839787,204.15,204.11,4.897868]
[1755162441769,14.82839787,204.12,204.04,5.6209998]
[1755162441944,14.82839787,204.11,204.04,10.5212858]
[1755162442135,0.67,204.14,204.04,10.5212858]
[1755162442136,0.67,204.14,204.04,10.15781174]
[1755162442340,15.49839787,204.18,204.07,26.0]
[1755162442556,15.49839787,204.18,204.05,0.72]
[1755162442557,15.49839787,204.18,204.09,26.0]
[1755162442760,14.82839787,204.17,204.09,26.0]
[1755162443066,14.82839787,204.16,204.09,26.0]
[1755162443361,15.49839787,204.18,204.09,26.0]
[1755162443566,15.49839787,204.18,204.08,5.6200392]
[1755162443567,15.49839787,204.18,204.11,26.0]
[1755162443745,14.82839787,204.17,204.11,26.0]
[1755162443945,14.82839787,204.16,204.11,26.0]
[1755162444160,15.49839787,204.16,204.11,26.0]
[1755162444467,14.82839787,204.16,204.11,30.89923247]
[1755162444641,14.82839787,204.17,204.11,30.89923247]
[1755162445566,14.82839787,204.18,204.11,30.89923247]
[1755162446172,14.82839787,204.17,204.11,30.89923247]
[1755162446469,0.67,204.19,204.11,30.89923247]
[1755162446765,14.82839787,204.17,204.11,30.89923247]
[1755162446976,14.82839787,204.18,204.11,30.89923247]
[1755162447144,14.82839787,204.17,204.11,30.89923247]
[1755162447453,14.82839787,204.16,204.11,30.89923247]
[1755162447873,14.82839787,204.14,204.1,26.0]
[1755162448056,15.49839787,204.13,204.07,4.90008637]
[1755162448259,14.82839787,204.12,204.08,26.0]
[1755162448644,14.97839787,204.13,204.08,26.0]
[1755162448867,14.82839787,204.13,204.08,30.90000218]
[1755162449367,37.4,204.22,204.08,30.90000218]
[1755162449681,14.82839787,204.14,204.08,30.90000218]
[1755162450451,37.4,204.22,204.08,30.90000218]
[1755162450651,17.13921942,204.21,204.04,19.22145894]
[1755162450963,14.82839787,204.09,204.03,4.9312232]
[1755162451153,14.82839787,204.12,204.04,0.71]
[1755162451356,14.82839787,204.12,204.06,26.0]
[1755162451553,0.63,204.16,204.07,0.71]
[1755162451860,14.82839787,204.12,204.06,26.0]
[1755162452348,14.82839787,204.11,204.06,26.0]
[1755162452545,0.63,204.18,204.07,27.20002793]
[1755162452771,14.82839787,204.16,204.08,0.71]
[1755162452969,14.82839787,204.17,204.08,0.71]
[1755162453184,14.82839787,204.16,204.08,0.71]
[1755162453354,14.82839787,204.15,204.08,0.71]
[1755162453556,14.82839787,204.14,204.08,0.71]
[1755162453760,14.82839787,204.12,204.07,26.0]
[1755162453977,14.82839787,204.1,204.05,5.610676]
[1755162454467,14.82839787,204.11,204.05,5.610676]
[1755162455074,14.82839787,204.08,204.03,0.03]
[1755162455247,14.82839787,204.09,204.03,5.64116991]
[1755162455448,14.82839787,204.09,204.06,26.0]
[1755162455664,14.82839787,204.09,204.03,31.64116991]
[1755162455970,14.82839787,204.12,204.06,26.0]
[1755162456368,14.82839787,204.11,204.06,26.0]
[1755162456672,15.45839787,204.11,204.06,26.0]
[1755162456986,14.82839787,204.12,204.06,26.71]
[1755162457683,14.82839787,204.1,204.06,26.0]
[1755162457986,14.82839787,204.07,204.03,0.03]
[1755162458274,14.82839787,204.07,204.03,26.03]
[1755162458475,0.63,204.09,204.03,26.03]
[1755162458677,14.82839787,204.07,204.03,26.03]
[1755162459159,0.63,204.06,204.03,0.03]
[1755162459359,14.82839787,204.06,204.03,0.03]
[1755162459966,0.63,204.09,204.03,0.03]
[1755162460180,14.82839787,204.08,204.03,0.03]
[1755162460560,0.63,204.12,204.03,0.74]
[1755162460759,14.82839787,204.1,204.03,0.74]
[1755162460988,14.82839787,204.11,204.03,0.74]
[1755162461784,14.82839787,204.11,204.04,4.9009998]
[1755162462162,14.82839787,204.1,204.04,4.9009998]
[1755162465688,14.82839787,204.12,204.05,0.71]
[1755162465891,14.82839787,204.13,204.05,0.71]
[1755162466071,0.06,204.16,204.08,26.0]
[1755162466267,0.06,204.16,204.09,26.71]
[1755162466669,0.06,204.16,204.1,1.1999559]
[1755162467084,0.06,204.16,204.11,0.71]
[1755162467276,0.06,204.16,204.12,0.71]
[1755162467477,0.06,204.16,204.13,0.71]
[1755162468089,0.06,204.16,204.15,4.89835904]
[1755162468291,0.06,204.16,204.15,5.60835904]
[1755162468889,0.06,204.19,204.18,26.0]
[1755162469104,0.06,204.19,204.18,41.81621557]
[1755162469593,0.06,204.19,204.18,26.71]
[1755162470298,0.06,204.19,204.18,31.60763933]
[1755162470502,0.06,204.19,204.17,26.0]
[1755162470696,0.06,204.19,204.16,26.0]
[1755162470998,0.06,204.19,204.17,26.71]
[1755162471499,0.06,204.19,204.18,0.71]
[1755162472093,0.06,204.19,204.17,26.0]
[1755162472286,0.06,204.19,204.18,4.89763933]
[1755162472697,0.06,204.19,204.17,31.60780072]
[1755162473098,0.06,204.19,204.18,0.71]
[1755162474409,0.06,204.19,204.18,5.60763933]
[1755162474612,15.12313722,204.29,204.18,20.28366533]
[1755162474783,15.12313722,204.29,204.19,0.71]
[1755162475282,14.80313722,204.28,204.19,0.71]
[1755162476091,14.80313722,204.26,204.19,0.71]
[1755162476413,0.06,204.3,204.22,26.0]
[1755162476577,14.80313722,204.28,204.22,26.0]
[1755162476908,14.80313722,204.27,204.22,26.0]
[1755162477100,14.80313722,204.28,204.22,26.0]
[1755162477299,0.39,204.29,204.23,26.0]
[1755162477682,14.86313722,204.3,204.23,26.0]
[1755162477882,14.86313722,204.3,204.22,26.0]
[1755162478213,0.39,204.29,204.22,26.0]
[1755162478512,14.80313722,204.27,204.22,26.0]
[1755162478680,15.19313722,204.29,204.22,31.60655648]
[1755162479281,14.80313722,204.23,204.2,26.0]
[1755162479619,14.80313722,204.22,204.16,9.57052805]
[1755162479914,14.80313722,204.22,204.16,35.57052805]
[1755162482307,14.80313722,204.22,204.16,30.67243287]
[1755162482483,14.80313722,204.22,204.16,35.57045255]
[1755162482821,0.06,204.3,204.19,26.0]
[1755162483111,0.06,204.3,204.2,0.66]
[1755162483318,14.80313722,204.29,204.2,0.66]
[1755162483614,14.80313722,204.25,204.2,0.66]
[1755162483781,14.80313722,204.24,204.19,26.0]
[1755162483986,14.80313722,204.26,204.2,0.66]
[1755162484196,14.80313722,204.26,204.19,26.0]
[1755162484384,14.80313722,204.2,204.14,5.55836146]
[1755162484605,14.80313722,204.18,204.11,0.66]
[1755162484810,0.39,204.22,204.11,5.55931899]
[1755162484985,0.39,204.25,204.15,26.0]
[1755162485182,5.28524182,204.28,204.17,26.0]
[1755162485401,14.86313722,204.3,204.22,26.0]
[1755162485600,0.06,204.3,204.22,26.66]
[1755162485792,14.80313722,204.29,204.22,26.66]
[1755162486428,14.86313722,204.3,204.23,4.89644028]
[1755162486584,0.06,204.3,204.23,4.89644028]
[1755162486920,14.86313722,204.3,204.23,4.89644028]
[1755162488118,14.80313722,204.29,204.24,26.0]
[1755162488323,15.19313722,204.29,204.24,26.0]
[1755162488488,0.39,204.29,204.24,26.0]
[1755162488686,14.80313722,204.27,204.24,26.0]
[1755162488881,0.06,204.3,204.24,26.0]
[1755162489137,14.86313722,204.3,204.24,30.89619706]
[1755162489379,0.06,204.3,204.26,26.0]
[1755162489584,14.80313722,204.28,204.26,26.0]
[1755162489778,14.80313722,204.29,204.26,26.0]
[1755162490018,0.45,204.3,204.26,26.66]
[1755162490019,0.06,204.3,204.26,26.66]
[1755162490190,14.86313722,204.3,204.26,26.0]
[1755162490383,0.06,204.3,204.26,26.0]
[1755162490586,0.06,204.3,204.24,26.0]
[1755162490587,94.40313722,204.29,204.24,26.0]
[1755162490816,89.35706625,204.29,204.24,26.0]
[1755162490996,9.75706625,204.28,204.24,26.0]
[1755162491184,89.35706625,204.27,204.21,0.66]
[1755162491509,0.06,204.3,204.21,4.89681917]
[1755162491510,89.35706625,204.26,204.21,4.89681917]
[1755162491683,89.35706625,204.26,204.2,4.8971333]
[1755162491684,79.6,204.25,204.2,4.8971333]
[1755162491884,79.6,204.24,204.2,5.5571333]
[1755162492625,79.6,204.24,204.21,0.66]
[1755162494129,79.6,204.24,204.19,26.0]
[1755162494333,79.6,204.24,204.21,26.0]
[1755162494824,9.75706625,204.22,204.15,15.336745]
[1755162495032,79.6,204.23,204.15,0.66]
[1755162495033,9.75706625,204.19,204.15,0.66]
[1755162495824,9.75706625,204.19,204.15,26.66]
[1755162496031,9.75706625,204.19,204.15,0.66]
[1755162496529,9.75706625,204.2,204.16,26.0]
[1755162497524,9.75706625,204.17,204.11,0.03]
[1755162497828,9.75706625,204.13,204.11,0.03]
[1755162497998,9.75706625,204.12,204.11,0.03]
[1755162498202,37.45,204.17,204.11,0.03]
[1755162498425,46.53706625,204.17,204.11,0.69]
[1755162498632,79.6,204.2,204.11,0.69]
[1755162498812,79.6,204.2,204.15,30.89815517]
[1755162499198,79.6,204.2,204.16,0.66]
[1755162499528,79.6,204.2,204.17,0.66]
[1755162499705,79.6,204.2,204.18,0.66]
[1755162500436,79.6,204.24,204.19,0.66]
[1755162500756,79.6,204.24,204.2,0.66]
[1755162501058,79.6,204.24,204.22,26.0]
[1755162501261,10.42706625,204.23,204.16,26.66]
[1755162501425,9.75706625,204.22,204.16,26.66]
[1755162501622,9.75706625,204.22,204.18,26.0]
[1755162501851,9.75706625,204.19,204.11,5.58929095]
[1755162502032,9.75706625,204.16,204.11,37.43]
[1755162502225,9.75706625,204.15,204.11,0.69]
[1755162502633,37.41,204.19,204.11,0.03]
[1755162502822,9.75706625,204.12,204.11,0.03]
[1755162503022,15.32614522,204.12,204.11,0.03]
[1755162503417,10.42706625,204.12,204.11,0.03]
[1755162504022,0.67,204.12,204.11,0.03]
[1755162504220,4.89834332,204.16,204.11,26.03]
[1755162504221,9.75706625,204.16,204.11,26.03]
[1755162504439,0.67,204.16,204.11,26.03]
[1755162504759,14.81164072,204.17,204.11,26.03]
[1755162505053,14.81164072,204.18,204.11,26.03]
[1755162505227,14.81164072,204.18,204.11,30.92928845]
[1755162505548,14.81164072,204.18,204.11,26.03]
[1755162505758,14.81164072,204.17,204.11,26.03]
[1755162506128,14.81164072,204.18,204.11,26.03]
[1755162506625,14.81164072,204.17,204.11,26.03]
[1755162506931,14.81164072,204.15,204.11,26.03]
[1755162507328,14.81164072,204.15,204.11,0.03]
[1755162507542,15.48164072,204.16,204.11,0.03]
[1755162507838,0.67,204.16,204.11,0.03]
[1755162508044,14.81164072,204.17,204.11,4.92929476]
[1755162508856,14.81164072,204.14,204.11,0.03]
[1755162509031,15.48164072,204.14,204.11,0.03]
[1755162509235,14.81164072,204.13,204.11,0.03]
[1755162509523,132.5,204.2,204.11,0.03]
[1755162509524,79.6,204.12,204.11,0.69]
[1755162509925,79.6,204.17,204.11,26.69]
[1755162510229,79.6,204.16,204.11,26.69]
[1755162510452,79.6,204.16,204.11,0.03]
[1755162510760,79.6,204.16,204.11,0.71]
[1755162511737,79.6,204.16,204.12,0.68]
[1755162513039,79.6,204.16,204.11,0.03]
[1755162513040,14.81164072,204.13,204.11,0.03]
[1755162513236,131.74164072,204.12,204.1,0.03]
[1755162513440,20.35095971,204.11,204.09,0.03]
[1755162513635,20.35095971,204.11,204.07,0.03]
[1755162513636,15.42164072,204.1,204.07,0.03]
[1755162513841,14.81164072,204.08,204.07,0.03]
[1755162514153,116.32,204.1,204.07,0.03]
[1755162514352,14.81164072,204.09,204.07,0.03]
[1755162515047,131.15164072,204.1,204.07,0.03]
[1755162515253,14.81164072,204.09,204.07,0.03]
[1755162515465,14.81164072,204.08,204.07,0.03]
[1755162515662,15.36164072,204.08,204.07,0.03]
[1755162517336,20.26167992,204.08,204.07,0.03]
[1755162517958,35.36789549,204.08,204.07,0.03]
[1755162518464,15.10621557,204.07,204.04,0.03]
[1755162518673,15.10621557,204.05,204.03,0.03]
[1755162518838,15.36164072,204.04,203.99,0.03]
[1755162519155,67.14785629,204.03,203.99,0.03]
[1755162519534,72.0490963,204.03,203.99,0.03]
[1755162519761,56.94288073,204.03,203.99,0.03]
[1755162519958,56.39288073,204.03,203.99,0.03]
[1755162520441,41.58124001,204.03,203.99,0.03]
[1755162520641,56.39288073,204.03,203.99,0.03]
[1755162520856,56.94288073,204.03,203.99,0.03]
[1755162521569,51.49164072,204.03,203.99,0.03]
[1755162521768,56.39288073,204.03,203.99,0.03]
[1755162522067,0.55,204.09,203.99,0.03]
[1755162522270,36.66,204.08,204.02,0.71]
[1755162522433,51.47164072,204.07,204.02,0.71]
[1755162522633,35.26,204.26,204.22,505.49806446]
[1755162522974,79.63154064,204.23,204.22,299.45986043]
[1755162523177,86.78336856,204.23,204.22,264.26618305]
[1755162523469,86.92553013,204.23,204.22,264.26618305]
[1755162523835,91.82197041,204.23,204.22,88.83466168]
[1755162524253,91.67980884,204.23,204.22,54.93759013]
[1755162524564,0.14216157,204.19,204.05,10.68]
[1755162524737,14.81164072,204.15,204.07,10.0]
[1755162524941,0.55,204.21,204.09,10.0]
[1755162525186,51.49164072,204.2,204.12,10.0]
[1755162525479,14.81164072,204.13,204.1,0.68]
[1755162525655,14.81164072,204.11,204.07,0.68]
[1755162525973,14.81164072,204.1,204.08,0.68]
[1755162526177,14.81164072,204.09,204.07,0.68]
[1755162526370,14.81164072,204.1,204.07,0.68]
[1755162526581,14.81164072,204.1,204.08,0.68]
[1755162526863,14.81164072,204.09,204.06,0.68]
[1755162527072,14.81164072,204.09,204.07,0.68]
[1755162527753,56.37085858,204.12,204.07,0.68]
[1755162528741,51.33481289,204.12,204.07,0.68]
[1755162529647,41.55921786,204.12,204.07,0.68]
[1755162530146,51.33481289,204.12,204.07,0.68]
[1755162530350,79.6,204.11,204.07,0.68]
[1755162531457,84.49936984,204.11,204.07,0.68]
[1755162531856,79.6,204.11,204.08,0.68]
[1755162532252,79.6,204.11,204.09,0.68]
[1755162532461,79.6,204.11,204.1,0.68]
[1755162533253,79.6,204.11,204.07,0.68]
[1755162533470,79.6,204.11,204.08,0.68]
[1755162533653,79.6,204.11,204.06,10.0]
[1755162533854,79.6,204.11,204.09,0.68]
[1755162534372,79.6,204.11,204.04,0.03]
[1755162534373,84.49940637,204.11,204.04,10.03]
[1755162534585,79.6,204.1,204.05,0.68]
[1755162534747,89.37559503,204.09,204.05,0.68]
[1755162535581,36.5,204.08,204.05,0.68]
[1755162535760,41.4001874,204.08,204.05,0.68]
[1755162537877,79.6,204.07,204.04,0.03]
[1755162538170,36.44,204.06,204.04,0.71]
[1755162538358,79.6,204.05,204.04,0.03]
[1755162540170,84.50075961,204.05,204.04,0.03]
[1755162540371,79.6,204.1,204.05,10.0]
[1755162540584,79.6,204.1,204.07,10.0]
[1755162540755,79.6,204.1,204.08,0.67]
[1755162540958,79.6,204.1,204.05,10.67]
[1755162541269,79.6,204.1,204.06,0.67]
[1755162541861,36.4,204.09,204.04,0.03]
[1755162542058,36.4,204.09,204.04,0.7]
[1755162542059,41.30000159,204.09,204.04,0.7]
[1755162542560,36.4,204.09,204.05,0.67]
[1755162542874,36.4,204.09,204.05,10.67]
[1755162543056,36.4,204.09,204.06,0.67]
[1755162543449,41.2998039,204.09,204.06,0.67]
[1755162543772,41.2998039,204.09,204.04,0.03]
[1755162543976,41.2998039,204.09,204.05,0.67]
[1755162544272,36.4,204.09,204.06,0.67]
[1755162545248,51.0754488,204.09,204.04,0.03]
[1755162545452,0.55,204.08,204.04,0.03]
[1755162545657,9.77559503,204.05,204.04,0.03]
[1755162545883,46.09559503,204.05,204.04,0.03]
[1755162546251,50.99635464,204.05,204.04,0.03]
[1755162546653,41.22075961,204.05,204.04,0.03]
[1755162546853,50.99635464,204.05,204.04,0.03]
[1755162549263,51.54635464,204.05,204.04,0.03]
[1755162549467,50.99635464,204.05,204.04,0.03]
[1755162549663,51.54635464,204.05,204.04,0.03]
[1755162549861,132.5,204.04,204.02,0.03]
[1755162550176,173.68124001,204.03,204.02,0.03]
[1755162551072,183.45683504,204.03,204.02,0.03]
[1755162552253,168.78,204.03,204.02,0.03]
[1755162552561,137.40124001,204.03,204.02,0.03]
[1755162552758,173.64124001,204.03,204.02,0.03]
[1755162553064,183.41683504,204.03,204.02,0.03]
[1755162554355,137.40124001,204.03,204.02,0.03]
[1755162554680,173.64124001,204.03,204.02,0.03]
[1755162555655,183.41683504,204.03,204.02,0.03]
[1755162556581,168.74,204.03,204.02,0.7]
[1755162557882,132.5,204.08,204.02,0.7]
[1755162558079,36.22,204.07,204.02,0.7]
[1755162558281,41.12029131,204.07,204.03,0.67]